bitfinex/quotes_ETHUSD_20241024
["timestamp","ask_amount","ask_price","bid_price","bid_amount"]
[1729791980164,0.8039,2526.9,2526.6,3.95784]
[1729791980366,0.7539,2526.9,2526.6,3.95784]
[1729791980672,0.7539,2526.9,2526.6,3.9578]
[1729791981043,3.96664,2527.4,2526.6,7.91558]
[1729791981244,0.65572237,2527.5,2526.7,3.95763]
[1729791981444,3.9568,2527.3,2526.6,3.95787]
[1729791981650,0.39568,2527.2,2526.6,3.95785]
[1729791981856,0.39568,2527.2,2526.7,3.95772]
[1729791982039,4.61229237,2527.5,2526.7,4.03686549]
[1729791982040,3.95657,2527.5,2526.7,4.03686549]
[1729791982260,3.95656,2527.5,2526.7,0.07914549]
[1729791982569,3.95656,2527.5,2526.7,3.95772]
[1729791982875,3.95696,2527.2,2526.5,3.95803]
[1729791983168,3.95696,2527.2,2526.4,8.02384654]
[1729791983473,0.7742,2527.0,2526.4,4.06565654]
[1729791983771,0.7742,2527.0,2526.4,8.02383654]
[1729791984674,0.7742,2527.0,2526.5,0.0791511]
[1729791984896,1.2868856,2527.0,2526.5,0.0791511]
[1729791985677,1.2868856,2527.0,2526.4,4.06565654]
[1729791985678,1.2868856,2527.0,2526.4,0.7567]
[1729791985881,1.2868856,2527.0,2526.3,6.95822]
[1729791986177,3.95741,2526.9,2526.2,0.7682]
[1729791986375,3.95741,2526.9,2526.0,3.7682]
[1729791986376,3.9578,2526.7,2526.0,3.7682]
[1729791986533,3.95759,2526.8,2526.1,0.07916298]
[1729791986734,3.95742,2526.9,2526.1,4.03779298]
[1729791987037,0.473162,2526.8,2526.1,4.03779298]
[1729791987633,0.473162,2526.8,2526.2,3.95845]
[1729791987834,0.7742,2527.0,2526.3,7.99575916]
[1729791988039,0.7742,2527.0,2526.4,4.03734696]
[1729791988479,0.8039,2527.2,2526.5,6.95803]
[1729791988698,0.8039,2527.2,2526.5,4.03711256]
[1729791989041,0.8039,2527.2,2526.5,7.99503256]
[1729791989241,0.8039,2527.2,2526.5,7.91588]
[1729791989440,0.8039,2527.2,2526.5,3.95792]
[1729791989686,0.476078,2527.1,2526.5,4.03707093]
[1729791990644,0.476078,2527.1,2526.5,0.07915093]
[1729791990842,0.476078,2527.1,2526.5,3.07915093]
[1729791991073,0.476078,2527.1,2526.4,3.8279]
[1729791991288,0.8157,2526.8,2526.2,3.7572]
[1729791991589,7.91564,2526.7,2526.0,0.7572]
[1729791991743,3.9579,2526.6,2526.0,0.7572]
[1729791992578,3.95774,2526.7,2526.0,0.7572]
[1729791992888,0.8263,2526.5,2525.8,3.95912]
[1729791993089,4.78442,2526.5,2525.8,0.07917005]
[1729791993454,3.95821,2526.4,2525.8,0.07917005]
[1729791993854,4.78437,2526.5,2525.8,0.07917005]
[1729791994156,0.9615364,2526.4,2525.8,0.07917005]
[1729791994572,4.9197664,2526.4,2525.8,0.07917005]
[1729791994786,4.9197664,2526.4,2525.8,3.07917005]
[1729791994987,0.9615364,2526.4,2525.7,3.7758]
[1729791995288,0.7888,2526.4,2525.7,0.66101677]
[1729791995495,0.7888,2526.4,2525.7,4.62022677]
[1729791996095,0.7888,2526.4,2525.5,0.7958]
[1729791996096,3.95854,2526.2,2525.5,0.7958]
[1729791996275,0.791705,2526.1,2525.5,3.7958]
[1729791996456,0.791705,2526.1,2525.5,7.75533]
[1729791996653,4.09775654,2526.4,2525.6,4.03851842]
[1729791996654,3.95844,2526.3,2525.6,4.03851842]
[1729791996855,1.3118998,2527.0,2526.2,0.8196]
[1729791997090,3.95749,2526.9,2526.3,0.07915585]
[1729791997295,4.7455,2527.0,2526.3,4.03735585]
[1729791997459,3.95747,2526.9,2526.3,0.07915585]
[1729791997856,0.7882,2527.0,2526.3,0.07915585]
[1729791998088,0.7882,2527.0,2526.5,3.95803]
[1729791998268,1.262722,2527.0,2526.5,3.95803]
[1729791999193,1.262722,2527.0,2526.4,3.95812]
[1729791999395,1.262722,2527.0,2526.4,3.9581]
[1729791999553,5.219992,2527.0,2526.3,3.95833]
[1729791999879,5.219992,2527.0,2526.3,3.95824]
[1729792000200,4.4794292,2526.9,2526.3,3.95824]
[1729792000381,0.5219992,2526.9,2526.3,7.91651]
[1729792000586,0.5219992,2526.9,2526.3,3.95824]
[1729792000903,0.5219992,2526.9,2526.4,3.95819]
[1729792002322,0.5219992,2526.9,2526.4,3.95812]
[1729792002685,4.4794292,2526.9,2526.3,3.95833]
[1729792002981,0.96994912,2526.8,2526.2,4.77797]
[1729792003180,3.958,2526.6,2526.1,3.0]
[1729792003429,0.8017,2526.7,2526.0,0.8052]
[1729792003609,3.95812,2526.5,2525.9,4.01647618]
[1729792003812,3.95812,2526.5,2525.9,1.01647618]
[1729792003813,3.95808,2526.5,2525.9,1.01647618]
[1729792004121,0.395808,2526.4,2525.8,5.85989914]
[1729792004331,0.395808,2526.4,2525.8,4.84342296]
[1729792004486,0.395808,2526.4,2525.9,1.01761576]
[1729792004996,0.395808,2526.4,2525.9,4.97656576]
[1729792005305,0.395808,2526.4,2525.8,1.62850306]
[1729792005506,0.7619,2526.2,2525.9,1.84097457]
[1729792005709,0.7619,2526.2,2526.0,1.01767151]
[1729792005885,0.7619,2526.2,2525.9,4.78227306]
[1729792006082,0.7619,2526.2,2526.0,1.01896305]
[1729792006493,0.7619,2526.2,2526.0,1.01903991]
[1729792006738,1.629762,2526.2,2525.8,0.82330306]
[1729792007031,1.629762,2526.2,2525.9,1.01906612]
[1729792007231,1.629762,2526.2,2525.8,0.82330306]
[1729792007438,1.629762,2526.2,2525.9,1.01938158]
[1729792007599,1.629762,2526.2,2525.8,0.82330306]
[1729792007794,1.629762,2526.2,2525.9,1.01939242]
[1729792007995,1.629762,2526.2,2525.8,4.78243306]
[1729792008208,1.629762,2526.2,2525.9,1.01938898]
[1729792008493,1.629762,2526.2,2525.9,4.97846775]
[1729792008800,3.95823,2526.4,2525.9,3.95895]
[1729792009032,0.8218,2526.5,2526.0,4.97816984]
[1729792009352,0.8218,2526.5,2526.1,3.95859]
[1729792009864,0.8218,2526.5,2526.1,7.91718]
[1729792010162,0.8218,2526.5,2526.0,3.9588]
[1729792010364,1.299779,2526.5,2526.0,3.9588]
[1729792010536,5.257889,2526.5,2525.9,3.95884]
[1729792010721,3.95837,2526.3,2525.8,0.82330306]
[1729792011061,3.95834,2526.4,2525.8,4.97885482]
[1729792011352,3.95848,2526.3,2525.7,5.55017306]
[1729792011558,3.95848,2526.3,2525.8,1.01991804]
[1729792011723,3.95901,2525.9,2525.6,0.82330306]
[1729792012055,3.95901,2525.9,2525.3,4.78315306]
[1729792012219,3.95898,2525.9,2525.4,1.02039358]
[1729792012424,3.95898,2525.9,2525.3,3.95984]
[1729792012651,3.9593,2525.7,2525.1,4.78340306]
[1729792012831,3.9593,2525.7,2525.2,4.98057476]
[1729792013044,5.573794,2525.8,2525.2,3.96006]
[1729792014766,5.573794,2525.8,2525.2,7.92006]
[1729792014967,5.573794,2525.8,2525.2,3.96]
[1729792015134,0.9532894,2525.7,2525.2,3.96]
[1729792015653,4.9125994,2525.7,2525.2,3.96]
[1729792016894,4.9125994,2525.7,2525.1,3.9602]
[1729792018358,0.9532894,2525.7,2525.2,3.96005]
[1729792018668,0.8313,2525.9,2525.4,4.73427]
[1729792018992,0.8313,2525.9,2525.5,3.95953]
[1729792020296,4.7903,2525.9,2525.2,3.95997]
[1729792020464,4.75724,2525.6,2525.0,3.96027]
[1729792020660,3.95973,2525.5,2525.0,3.0]
[1729792020860,7.91948,2525.5,2524.9,4.79164]
[1729792021100,3.96026,2525.1,2524.6,4.79219]
[1729792021261,0.7977,2525.0,2524.6,0.8312]
[1729792021463,0.7977,2525.0,2524.6,4.79221]
[1729792022269,0.7977,2525.0,2524.7,3.9608]
[1729792022483,0.7955,2525.3,2524.8,3.96062]
[1729792022678,5.626929,2525.3,2524.7,3.9608]
[1729792022898,3.96016,2525.2,2524.6,4.87140088]
[1729792023199,3.96016,2525.2,2524.7,3.96085]
[1729792023797,5.626929,2525.3,2524.7,7.92163]
[1729792024345,3.9602,2525.2,2524.6,4.79218]
[1729792024522,4.9189129,2525.2,2524.6,0.8312]
[1729792024848,3.96035,2525.1,2524.6,0.8312]
[1729792025543,3.96035,2525.1,2524.6,4.79219]
[1729792025720,0.9587129,2525.2,2524.6,4.79219]
[1729792025920,0.9587129,2525.2,2524.7,4.04000332]
[1729792026246,4.75552,2525.3,2524.7,4.54555677]
[1729792026540,4.75552,2525.3,2524.7,8.50633677]
[1729792026748,4.75552,2525.3,2524.7,3.96078]
[1729792027049,7.92027,2525.2,2524.6,4.79222]
[1729792027228,7.92027,2525.2,2524.6,4.0402311]
[1729792027229,3.96008,2525.2,2524.6,4.0402311]
[1729792027545,4.831627,2525.2,2524.6,3.96102]
[1729792027978,4.83063121,2525.2,2524.6,3.96102]
[1729792028565,3.96028,2525.1,2524.5,3.96113]
[1729792028731,4.73374,2525.0,2524.4,4.71842]
[1729792028932,3.96057,2524.9,2524.4,4.71842]
[1729792029276,1.7297567,2525.0,2524.5,3.96112]
[1729792029435,4.73359,2525.0,2524.4,4.71842]
[1729792029632,0.7732,2525.0,2524.4,0.7571]
[1729792029978,0.7732,2525.0,2524.6,3.96086]
[1729792030631,0.7732,2525.0,2524.5,3.96111]
[1729792030954,0.7732,2525.0,2524.5,3.9611]
[1729792031630,0.7732,2525.0,2524.6,3.96094]
[1729792031856,0.7732,2525.0,2524.7,3.96086]
[1729792032133,0.7902,2525.3,2524.9,3.96055]
[1729792032358,0.7902,2525.3,2524.9,4.74415]
[1729792032569,0.7902,2525.3,2525.0,3.96032]
[1729792032748,0.7587,2525.6,2524.9,0.86280313]
[1729792032945,1.56140165,2525.6,2525.2,3.95995]
[1729792033153,0.7587,2525.6,2525.3,3.95983]
[1729792033368,0.7587,2525.6,2525.4,3.95975]
[1729792033727,0.7587,2525.6,2525.3,3.95983]
[1729792034167,0.7587,2525.6,2525.1,3.96015]
[1729792034169,0.7587,2525.6,2525.2,3.96005]
[1729792036434,0.7514,2525.3,2524.8,8.73074]
[1729792036635,4.71139,2525.3,2524.8,4.8732926]
[1729792036830,3.9603,2525.1,2524.6,0.8144]
[1729792037077,3.31895654,2525.6,2524.4,4.77566]
[1729792037078,3.96056,2524.9,2524.4,4.77566]
[1729792037231,3.96056,2524.9,2524.4,3.96126]
[1729792037565,4.7119,2525.0,2523.9,3.30895654]
[1729792037566,3.96107,2524.6,2524.1,3.96171]
[1729792037778,0.479397,2524.6,2524.2,3.96158]
[1729792037929,3.96103,2524.6,2524.1,3.96171]
[1729792038267,3.96124,2524.5,2524.0,3.96195]
[1729792038572,4.71938,2524.3,2523.8,3.96226]
[1729792038932,0.7578,2524.3,2523.9,3.96203]
[1729792039128,4.71929,2524.3,2523.8,3.96217]
[1729792039329,0.7578,2524.3,2523.9,3.96211]
[1729792039971,0.7578,2524.3,2523.9,3.96201]
[1729792040361,4.71931,2524.3,2523.8,3.96226]
[1729792040529,4.71931,2524.3,2523.9,3.96211]
[1729792040734,0.7578,2524.3,2523.9,3.96205]
[1729792041273,0.7578,2524.3,2523.9,3.96203]
[1729792041770,0.7578,2524.3,2523.7,3.9623]
[1729792041975,1.229715,2524.3,2523.9,3.96205]
[1729792042349,1.229715,2524.3,2524.0,3.96194]
[1729792044041,0.7578,2524.3,2524.0,3.96194]
[1729792044247,0.8032,2524.7,2524.3,3.96142]
[1729792044476,0.8032,2524.7,2524.1,0.7568]
[1729792044680,0.8032,2524.7,2524.4,3.96124]
[1729792044977,3.97037,2525.1,2524.5,3.9611]
[1729792044978,0.7943,2525.0,2524.5,3.9611]
[1729792045149,1.191337,2525.0,2524.5,3.9611]
[1729792045541,5.151847,2525.0,2524.5,3.9611]
[1729792045874,5.151847,2525.0,2524.3,3.96144]
[1729792046176,4.75481,2525.0,2524.5,3.96116]
[1729792046506,8.71532,2525.0,2524.5,3.9611]
[1729792046671,3.96056,2524.9,2524.4,3.96131]
[1729792046877,7.92124,2524.9,2524.4,3.96131]
[1729792047076,3.96081,2524.8,2524.2,3.96165]
[1729792047385,0.7592,2524.7,2524.2,3.96165]
[1729792047534,0.7592,2524.7,2524.3,3.96137]
[1729792047733,4.72009,2524.7,2524.2,3.96165]
[1729792047950,4.72009,2524.7,2524.4,3.96123]
[1729792047951,0.7592,2524.7,2524.4,3.96123]
[1729792048361,0.7592,2524.7,2524.6,3.96102]
[1729792048563,4.71959,2525.0,2524.6,3.96102]
[1729792048733,5.588567,2525.0,2524.6,3.96102]
[1729792049158,1.628177,2525.0,2524.4,3.96123]
[1729792049473,5.588577,2525.0,2524.5,3.96111]
[1729792050384,5.588577,2525.0,2524.6,3.961]
[1729792050567,0.7592,2525.0,2524.6,3.961]
[1729792050770,0.7592,2525.0,2524.8,3.96063]
[1729792052281,3.95993,2525.3,2524.7,0.0792143]
[1729792052282,0.7524,2525.3,2524.7,0.0792143]
[1729792052482,3.9604,2525.0,2524.5,3.96108]
[1729792052683,0.7524,2524.9,2524.5,3.96107]
[1729792053046,0.7524,2524.9,2524.6,3.96092]
[1729792053247,0.7524,2524.9,2524.7,3.96084]
[1729792053487,0.7524,2524.9,2524.8,3.9607]
[1729792053651,0.7524,2525.1,2524.8,3.9607]
[1729792054889,0.7524,2525.1,2524.9,3.96054]
[1729792055762,0.7524,2525.1,2524.9,7.92101]
[1729792055968,0.7524,2525.1,2524.9,3.96047]
[1729792056173,4.06135654,2525.3,2525.0,3.96039]
[1729792056370,0.7524,2525.3,2525.0,3.96039]
[1729792056681,0.7524,2525.3,2525.1,3.96017]
[1729792057262,0.7524,2525.3,2525.0,3.96037]
[1729792057592,8.02128654,2525.3,2524.9,3.96052]
[1729792057810,3.30895654,2525.1,2524.8,3.96069]
[1729792057994,3.30895654,2525.1,2524.7,3.96076]
[1729792058299,3.96009,2525.2,2524.7,3.96076]
[1729792058503,4.86346919,2525.3,2524.9,3.96045]
[1729792059894,4.86346919,2525.3,2524.7,3.96074]
[1729792059895,3.9601,2525.2,2524.7,3.96074]
[1729792060167,7.26922654,2525.1,2524.5,3.96107]
[1729792060513,3.30895654,2524.9,2524.6,3.961]
[1729792060805,0.7524,2525.0,2524.4,3.7739]
[1729792060967,4.71282,2525.0,2524.4,7.7351]
[1729792061171,7.26927654,2525.1,2523.9,1.81957366]
[1729792061172,4.06135654,2524.7,2523.9,1.59720306]
[1729792061371,0.80221565,2524.6,2524.1,3.96168]
[1729792061607,4.06135654,2524.7,2524.3,3.96148]
[1729792061816,0.7524,2524.7,2524.3,3.96141]
[1729792061974,0.7524,2524.7,2524.3,7.92282]
[1729792062311,0.7524,2524.7,2524.3,3.96141]
[1729792062818,0.7524,2525.0,2524.5,7.92219]
[1729792063101,0.7524,2525.0,2524.5,3.96108]
[1729792063283,0.7524,2525.0,2524.5,7.92218]
[1729792063482,0.7524,2525.0,2524.5,3.96108]
[1729792063701,0.7524,2525.0,2524.6,3.96101]
[1729792064079,4.71285,2525.0,2524.5,3.96108]
[1729792064593,0.7524,2525.0,2524.6,3.96098]
[1729792064792,0.7524,2525.0,2524.2,0.7739]
[1729792065113,0.7524,2525.0,2524.6,7.9219]
[1729792065323,3.95995,2525.3,2524.6,3.96095]
[1729792065526,3.95995,2525.3,2524.3,3.96147]
[1729792065527,0.8305,2525.2,2524.8,3.96061]
[1729792065816,0.8305,2525.2,2524.7,3.9608]
[1729792065817,4.79065,2525.2,2524.7,3.9608]
[1729792066583,8.75081,2525.2,2524.7,3.9608]
[1729792066828,4.79065,2525.2,2524.7,3.9608]
[1729792066978,3.30895654,2524.9,2524.5,3.96117]
[1729792067185,4.79267,2525.0,2524.5,3.96117]
[1729792068500,0.8322,2525.0,2524.6,3.96102]
[1729792068703,0.8322,2525.0,2524.7,3.96077]
[1729792070296,0.8322,2525.0,2524.6,4.357062]
[1729792070697,4.79261,2525.0,2524.5,3.96116]
[1729792070905,4.79261,2525.0,2524.5,7.92227]
[1729792071334,0.8322,2525.0,2524.6,3.96101]
[1729792072343,0.8322,2525.0,2524.5,3.96115]
[1729792072514,4.79262,2525.0,2524.5,3.96115]
[1729792073009,0.8322,2525.0,2524.6,3.96102]
[1729792073546,4.79261,2525.0,2524.5,3.96115]
[1729792074057,0.8322,2525.0,2524.6,3.96094]
[1729792074463,4.79261,2525.0,2524.5,3.9611]
[1729792074818,4.79261,2525.0,2524.5,7.9222]
[1729792075230,4.79261,2525.0,2524.5,3.9611]
[1729792076650,3.9606,2524.9,2524.4,3.96124]
[1729792076846,3.96073,2524.8,2524.3,7.92276]
[1729792077052,0.7885,2524.7,2524.3,3.96135]
[1729792077508,0.7885,2524.7,2524.1,3.96169]
[1729792077709,0.7885,2524.7,2524.2,3.96158]
[1729792077909,0.7885,2524.7,2524.3,3.96143]
[1729792078115,0.7885,2524.7,2524.4,3.96131]
[1729792079222,0.7885,2524.7,2524.2,3.96152]
[1729792079553,4.7494,2524.7,2524.2,7.92309]
[1729792079750,4.7494,2524.7,2524.1,3.0]
[1729792080154,4.7494,2524.7,2524.2,7.92316]
[1729792080378,3.9614,2524.4,2524.0,0.8009]
[1729792080601,0.8093,2524.3,2523.7,1.84434808]
[1729792080741,0.8093,2523.9,2523.5,3.96274]
[1729792080941,0.8093,2523.9,2523.6,3.9625]
[1729792081374,0.8093,2523.9,2523.4,4.11235]
[1729792081594,0.8093,2523.9,2523.5,3.96273]
[1729792082378,0.8093,2523.9,2523.6,3.96252]
[1729792082779,4.7715,2523.9,2523.4,0.1496]
[1729792083080,3.96228,2523.8,2523.4,0.1496]
[1729792083278,1.28645,2523.9,2523.4,4.11241]
[1729792083279,5.24861,2523.9,2523.4,4.11241]
[1729792083484,3.96266,2523.6,2523.4,0.1496]
[1729792083653,0.8241,2523.5,2523.4,0.1496]
[1729792083855,4.78685,2523.5,2523.4,0.1496]
[1729792084345,0.8241,2523.5,2523.4,0.1496]
[1729792086347,4.78685,2523.5,2523.4,0.1496]
[1729792086948,5.661779,2523.5,2523.4,0.1496]
[1729792089101,1.699029,2523.5,2523.4,0.1496]
[1729792089282,0.8241,2523.5,2523.4,0.1496]
[1729792089668,4.78361,2523.7,2523.4,0.1496]
[1729792089870,3.30895654,2524.0,2523.4,0.9191]
[1729792089871,3.96227,2523.8,2523.4,0.9191]
[1729792090071,3.96203,2524.0,2523.4,4.11241]
[1729792090279,0.8211,2524.1,2523.7,3.96234]
[1729792090498,0.8211,2524.1,2523.5,3.96264]
[1729792090499,3.96198,2524.0,2523.5,3.96264]
[1729792090686,0.8211,2524.1,2523.6,3.96258]
[1729792091002,3.30895654,2524.3,2523.7,3.96228]
[1729792091003,3.96149,2524.3,2523.7,3.96228]
[1729792091157,3.96149,2524.3,2523.8,3.96224]
[1729792091360,4.78251,2524.4,2523.9,3.96207]
[1729792091903,3.9615,2524.3,2523.8,3.96215]
[1729792092197,5.656872,2524.4,2523.7,3.96243]
[1729792092198,3.96173,2524.2,2523.7,3.96243]
[1729792092398,3.96198,2524.0,2523.5,3.96275]
[1729792092601,3.96173,2524.2,2523.6,3.9625]
[1729792092602,3.96189,2524.1,2523.6,3.9625]
[1729792092804,3.96189,2524.1,2523.4,0.9191]
[1729792092805,3.96203,2524.0,2523.5,3.96273]
[1729792093008,4.78323,2523.9,2523.4,0.1496]
[1729792093372,4.78323,2523.9,2523.4,4.1124]
[1729792093572,8.74544,2523.9,2523.4,4.1124]
[1729792093814,4.78323,2523.9,2523.4,4.1124]
[1729792094098,3.96185,2524.1,2523.6,7.92508]
[1729792094283,3.96185,2524.1,2523.6,7.92502]
[1729792094484,8.67588,2524.2,2523.7,3.96243]
[1729792094909,4.71415,2524.2,2523.6,3.96251]
[1729792095074,3.96181,2524.1,2523.6,3.96251]
[1729792096618,4.71415,2524.2,2523.7,3.96235]
[1729792096810,3.96181,2524.1,2523.6,5.6070836]
[1729792097016,4.71415,2524.2,2523.7,3.96243]
[1729792097309,3.96192,2524.1,2523.6,5.6070836]
[1729792097513,0.7525,2524.2,2523.7,3.96234]
[1729792097674,4.71427,2524.2,2523.6,4.79167]
[1729792097880,3.96188,2524.1,2523.7,3.96243]
[1729792098419,0.7525,2524.2,2523.7,3.96243]
[1729792098714,3.96182,2524.1,2523.7,3.96243]
[1729792099162,0.7525,2524.2,2523.6,4.87102278]
[1729792099163,4.71423,2524.2,2523.6,4.87102278]
[1729792099290,3.96188,2524.1,2523.6,4.79178]
[1729792100397,3.96188,2524.1,2523.4,0.1496]
[1729792100398,3.96198,2524.0,2523.4,0.1496]
[1729792100602,3.96233,2523.8,2523.4,0.1496]
[1729792101003,3.96275,2523.5,2523.4,0.1496]
[1729792101322,0.7543,2523.8,2523.4,0.1496]
[1729792101520,3.96268,2523.6,2523.4,0.1496]
[1729792102373,0.7543,2523.8,2523.4,0.1496]
[1729792102578,3.96222,2523.9,2523.4,4.11249]
[1729792103026,5.583831,2524.1,2523.4,4.11249]
[1729792103027,5.583831,2524.1,2523.5,3.96267]
[1729792103236,9.545751,2524.1,2523.6,4.73721]
[1729792103605,5.583831,2524.1,2523.6,0.7747]
[1729792103812,4.71622,2524.1,2523.6,4.73721]
[1729792104110,4.71622,2524.1,2523.7,3.96238]
[1729792104447,4.71622,2524.1,2523.6,4.73721]
[1729792104591,0.7543,2524.1,2523.6,4.73719]
[1729792104796,7.92316,2524.3,2523.8,3.9622]
[1729792104995,3.96174,2524.2,2523.7,3.96243]
[1729792105238,3.96174,2524.2,2523.7,0.869961]
[1729792105533,3.96174,2524.2,2523.4,0.1496]
[1729792105534,3.96235,2523.8,2523.4,0.1496]
[1729792105706,3.96228,2523.8,2523.4,0.1496]
[1729792106029,3.96228,2523.8,2523.4,4.11241]
[1729792106393,4.71636,2524.0,2523.4,4.1124]
[1729792106591,7.26942654,2525.0,2523.6,3.96259]
[1729792106592,7.92372,2524.1,2523.6,3.96259]
[1729792106795,4.71603,2524.2,2523.6,3.96249]
[1729792106996,4.71603,2524.2,2523.7,4.77545]
[1729792107430,4.71603,2524.2,2523.8,3.96226]
[1729792107700,3.96182,2524.1,2523.7,4.7755]
[1729792108209,4.71603,2524.2,2523.7,4.7755]
[1729792108210,0.7543,2524.2,2523.7,4.7755]
[1729792108532,4.71602,2524.2,2523.7,4.77542]
[1729792108829,4.71602,2524.2,2523.7,4.77541]
[1729792109037,3.96182,2524.1,2523.7,4.77541]
[1729792109236,4.71595,2524.2,2523.7,8.7377]
[1729792109421,0.7543,2524.2,2523.8,3.96218]
[1729792109596,4.72892,2524.4,2523.9,3.96211]
[1729792109803,3.96151,2524.3,2523.9,3.96211]
[1729792110139,3.96163,2524.3,2523.8,3.96223]
[1729792110434,4.72915,2524.2,2523.7,4.77552]
[1729792110636,3.96182,2524.1,2523.7,4.77552]
[1729792110800,3.96199,2524.0,2523.5,3.96261]
[1729792111131,3.96196,2524.0,2523.6,3.96252]
[1729792112843,3.96223,2523.9,2523.4,4.89977]
[1729792113132,3.96223,2523.9,2523.5,3.96267]
[1729792114418,3.96192,2524.1,2523.5,3.96267]
[1729792114612,3.96182,2524.1,2523.6,3.96253]
[1729792114940,3.962,2524.0,2523.6,3.96253]
[1729792115256,3.962,2524.0,2523.4,4.89972]
[1729792115257,3.96216,2523.9,2523.4,4.89972]
[1729792115535,3.96229,2523.8,2523.4,4.89972]
[1729792116143,3.96229,2523.8,2523.4,0.1496]
[1729792116144,3.96261,2523.6,2523.4,0.1496]
[1729792116300,3.96275,2523.5,2523.4,0.1496]
[1729792116702,4.755269,2523.5,2523.4,0.1496]
[1729792117513,5.586069,2523.5,2523.4,0.1496]
[1729792117718,0.7803,2523.8,2523.4,0.1496]
[1729792117974,0.7803,2523.8,2523.5,3.96274]
[1729792118174,3.96216,2523.9,2523.5,3.96274]
[1729792119494,3.96235,2523.8,2523.4,0.1496]
[1729792120752,3.96248,2523.7,2523.4,0.1496]
[1729792120949,3.9625,2523.7,2523.4,0.1496]
[1729792124732,3.96261,2523.6,2523.4,0.1496]
[1729792125028,3.96227,2523.8,2523.4,0.1496]
[1729792125235,3.96266,2523.6,2523.4,0.1496]
[1729792126509,3.9626,2523.6,2523.4,0.1496]
[1729792127956,0.7775,2523.9,2523.4,0.1496]
[1729792128108,0.7775,2523.9,2523.5,0.8075]
[1729792128109,3.96234,2523.8,2523.5,0.8075]
[1729792128311,3.96204,2524.0,2523.5,0.8075]
[1729792128534,3.96227,2523.8,2523.5,0.8075]
[1729792128741,3.96227,2523.8,2523.4,0.1496]
[1729792128967,3.96275,2523.5,2523.4,0.1496]
[1729792129550,4.79401,2523.6,2523.4,0.1496]
[1729792129761,3.96261,2523.6,2523.4,0.1496]
[1729792129924,3.96275,2523.5,2523.4,0.1496]
[1729792130949,4.79495,2523.5,2523.4,0.1496]
[1729792131157,6.00160165,2523.5,2523.4,0.1496]
[1729792131378,9.31055819,2523.5,2523.4,0.1496]
[1729792131575,6.00160165,2523.5,2523.4,0.1496]
[1729792132543,9.31055819,2523.5,2523.4,0.1496]
[1729792136682,6.00160165,2523.5,2523.4,0.1496]
[1729792138662,5.16940165,2523.5,2523.4,0.1496]
[1729792141472,3.96275,2523.5,2523.4,0.1496]
[1729792145504,7.27170654,2523.5,2523.4,0.1496]
[1729792145709,8.02960654,2523.5,2523.4,0.1496]
[1729792148375,11.04960654,2523.5,2523.4,0.1496]
[1729792151706,11.03960654,2523.5,2523.4,0.1496]
[1729792151917,12.54082619,2523.5,2523.4,0.1496]
[1729792153778,12.53082619,2523.5,2523.4,0.1496]
[1729792154273,12.54082619,2523.5,2523.4,0.1496]
[1729792157425,3.96416,2522.6,2522.5,0.7726]
[1729792157581,4.75698,2522.6,2522.5,0.7726]
[1729792157778,3.96416,2522.6,2522.5,0.7726]
[1729792158482,3.96463,2522.3,2522.2,0.8194]
[1729792159078,3.96448,2522.4,2522.2,0.8194]
[1729792159275,3.96427,2522.6,2522.2,0.8194]
[1729792159698,3.9644,2522.5,2522.2,0.8194]
[1729792160220,3.96449,2522.4,2522.2,0.8194]
[1729792160380,3.96384,2522.8,2522.2,0.8194]
[1729792160719,3.96455,2522.4,2522.2,0.8194]
[1729792161426,3.96433,2522.5,2522.2,0.8194]
[1729792162314,3.96399,2522.8,2522.2,0.8194]
[1729792162517,3.96407,2522.7,2522.3,3.96462]
[1729792162732,3.96382,2522.9,2522.2,4.78412]
[1729792163036,0.761,2523.0,2522.3,0.8273]
[1729792163037,3.96412,2522.7,2522.3,0.8273]
[1729792163399,7.92821,2522.7,2522.3,0.8273]
[1729792163618,3.96409,2522.7,2522.3,0.8273]
[1729792163989,3.96417,2522.6,2522.3,0.8273]
[1729792164923,7.92845,2522.6,2522.3,0.8273]
[1729792165098,3.96422,2522.6,2522.3,0.8273]
[1729792165488,7.9285,2522.6,2522.3,0.8273]
[1729792165896,0.79285,2522.6,2522.3,0.8273]
[1729792166126,0.7604,2522.5,2522.0,0.8237]
[1729792166424,3.9645,2522.4,2522.0,0.8237]
[1729792166629,3.96464,2522.3,2522.0,0.8237]
[1729792166984,3.96493,2522.2,2522.0,0.8237]
[1729792167237,3.96494,2522.1,2522.0,0.8237]
[1729792168309,3.96493,2522.2,2521.6,7.93132]
[1729792168310,3.96486,2522.2,2521.8,0.7569]
[1729792168514,3.30895654,2522.5,2521.8,0.7569]
[1729792168515,3.96517,2522.0,2521.8,0.7569]
[1729792168735,7.93006,2522.1,2521.8,0.7569]
[1729792168908,3.96501,2522.1,2521.8,0.7569]
[1729792169223,3.96526,2521.9,2521.8,0.7569]
[1729792169832,3.96543,2521.8,2521.4,0.7847]
[1729792170001,3.96521,2522.0,2521.5,3.96584]
[1729792170201,3.96543,2521.8,2521.4,4.7506]
[1729792170413,3.96541,2521.9,2521.4,4.7506]
[1729792170631,3.96542,2521.8,2521.4,0.7847]
[1729792170820,3.96558,2521.7,2521.4,0.7847]
[1729792170991,3.96541,2521.9,2521.4,4.75073]
[1729792171191,3.96542,2521.8,2521.4,0.7847]
[1729792171489,3.96529,2521.9,2521.4,4.75072]
[1729792171829,3.96543,2521.8,2521.4,4.75072]
[1729792172199,3.96535,2521.9,2521.4,4.75072]
[1729792172399,3.96535,2521.9,2521.4,8.71666]